lending/lending_fUSD_20250130
["ID","MTS","AMOUNT","RATE_DAILY","PERIOD"]
[350928013,1738209040116,-518.47659828,0.00021499,4]
[350928014,1738209040126,-337.0274873,0.00021499,4]
[350928015,1738209040136,-28689.98396959,0.000215,2]
[350928016,1738209040148,-3842.19389062,0.000215,2]
[350928017,1738209040163,-63626.38146484,0.000215,2]
[350928018,1738209040258,-505.36627741,0.000215,2]
[350928019,1738209040270,-319.6296,0.000215,2]
[350928020,1738209040432,-4540.28453403,0.000215,2]
[350928021,1738209040445,-465.23257036,0.000215,2]
[350928022,1738209040456,-97094.56992787,0.000215,2]
[350928023,1738209040468,-71357.469029,0.000215,2]
[350928044,1738209044623,-467.84499314,0.000215,2]
[350928052,1738209046294,-6075.0,0.000215,2]
[350928485,1738209068942,2579.82436687,0.00023,120]
[350928488,1738209190421,772.55626336,0.00023,120]
[350928490,1738209191873,500.0,0.00023,120]
[350928491,1738209194368,2000.0,0.00023,120]
[350928493,1738209205318,200.0,0.00023,120]
[350928497,1738209243447,208.12268172,0.00023,120]
[350928498,1738209270815,150.0,0.0002264,120]
[350928499,1738209390749,150.0,0.00020951,120]
[350928501,1738209406573,198.78,0.00010137,2]
[350928502,1738209450757,150.0,0.00022345,120]
[350928504,1738209510728,150.0,0.00020928,120]
[350928505,1738209521265,150.0,0.0001312,5]
[350928509,1738209570716,150.0,0.0002214,120]
[350928515,1738209630779,150.0,0.00021855,120]
[350928516,1738209690724,150.0,0.00021104,120]
[350928517,1738209691998,271.0,0.00023,120]
[350928518,1738209750749,150.0,0.00020776,120]
[350928520,1738209780975,500.0,0.00022739,120]
[350928521,1738209781221,362.28683568,0.00022739,120]
[350928522,1738209789961,500.0,0.00023,120]
[350928523,1738209796629,2000.0,0.00023,120]
[350928524,1738209799885,500.0,0.00023,120]
[350928525,1738209808199,200.0,0.00023,120]
[350928526,1738209810914,150.0,0.00022449,120]
[350928528,1738209847309,500.0,0.00023,120]
[350928529,1738209859286,500.0,0.00023,120]
[350928530,1738209870533,500.0,0.00023,120]
[350928531,1738209883028,500.0,0.00023,120]
[350928532,1738209931629,150.0,0.00021815,120]
[350928533,1738209936843,500.0,0.00023,120]
[350928534,1738209953502,500.0,0.00023,120]
[350928535,1738209964299,500.0,0.00023,120]
[350928536,1738209975237,555.0,0.00023,120]
[350928537,1738209990722,150.0,0.00022439,120]
[350928538,1738210051309,150.0,0.00022329,120]
[350928539,1738210110732,150.0,0.0002175,120]
[350928540,1738210170723,150.0,0.00021751,120]
[350928541,1738210230816,150.0,0.00021882,120]
[350928545,1738210232315,-198.78,0.00016813,2]
[350928546,1738210232326,-222.54,0.00017748,2]
[350928592,1738210238259,-148.65,0.00017748,2]
[350928593,1738210238272,-369.09,0.00017748,2]
[350928594,1738210238283,-500.0,0.00017748,2]
[350928595,1738210238293,-14732.19827202,0.00018423,2]
[350928596,1738210238303,-540.87,0.00018425,2]
[350928597,1738210238314,-559.84827062,0.0001942,3]
[350928598,1738210238324,-150.0,0.00019523,2]
[350928599,1738210238333,-188.58904245,0.0001994,2]
[350928600,1738210238343,-201.73,0.00019965,2]
[350928601,1738210238353,-200.0,0.00019999,2]
[350928602,1738210238363,-453.48,0.0002,2]
[350928603,1738210238373,-150.0,0.0002,2]
[350928604,1738210238382,-250.0,0.00020012,2]
[350928605,1738210238391,-167.7,0.00020017,2]
[350928606,1738210238401,-800.0,0.00020108,2]
[350928607,1738210238411,-167.638,0.00020108,2]
[350928608,1738210238433,-820.088,0.00020108,2]
[350928609,1738210238444,-20354.16543182,0.00020209,2]
[350928783,1738210240360,-3545.83456818,0.00020209,2]
[350928785,1738210240370,-700.0,0.000203,7]
[350928787,1738210240380,-155.78,0.00020373,2]
[350928789,1738210240390,-1000.0,0.00020397,2]
[350928791,1738210240399,-1400.0,0.000204,7]
[350928793,1738210240409,-2100.0,0.000205,7]
[350928795,1738210240419,-153.27,0.00020534,2]
[350928797,1738210240430,-422.11543182,0.00020583,2]
[350928802,1738210240464,-365.88456818,0.00020583,2]
[350928804,1738210240474,-150.0,0.00020599,2]
[350928806,1738210240484,-2800.0,0.000206,7]
[350928808,1738210240494,-540.87,0.00020689,2]
[350928810,1738210240503,-3500.0,0.000207,7]
[350928812,1738210240514,-437.55,0.00020795,2]
[350928814,1738210240523,-788.0,0.00020796,2]
[350928816,1738210240536,-700.0,0.000208,7]
[350928818,1738210240551,-800.0,0.00020852,2]
[350928821,1738210240562,-12223.86963225,0.00020861,2]
[350928823,1738210240575,-8859.13036775,0.00020861,2]
[350928825,1738210240586,-1493.65282242,0.0002087,2]
[350928827,1738210240596,-500.0,0.0002087,3]
[350928829,1738210240605,-700.0,0.000209,7]
[350928831,1738210240615,-1013.0,0.000209,2]
[350928833,1738210240626,-734.67510986,0.000209,2]
[350928835,1738210240636,-734.6751098,0.00020934,2]
[350928837,1738210240645,-734.6751098,0.00020969,2]
[350928839,1738210240654,-734.6751098,0.00021003,2]
[350928841,1738210240666,-788.0,0.00021008,2]
[350928842,1738210240676,-734.6751098,0.00021038,2]
[350928843,1738210240688,-734.6751098,0.00021072,2]
[350928844,1738210240698,-734.6751098,0.00021107,2]
[350928845,1738210240707,-677.68616393,0.00021141,2]
[350928846,1738210240720,-56.98894587,0.00021141,2]
[350928847,1738210240730,-734.6751098,0.00021176,2]
[350928848,1738210240739,-26318.69212233,0.00021178,2]
[350928849,1738210240748,-1000.0,0.000212,2]
[350928850,1738210240759,-734.6751098,0.0002121,2]
[350928851,1738210240768,-788.0,0.0002122,2]
[350928852,1738210240778,-734.6751098,0.00021245,2]
[350928854,1738210240787,-1000.0,0.00021272,2]
[350928856,1738210240797,-734.6751098,0.00021279,2]
[350928858,1738210240806,-734.6751098,0.00021314,2]
[350928860,1738210240816,-500.0,0.00021328,2]
[350928862,1738210240825,-734.6751098,0.00021348,2]
[350928864,1738210240840,-7268.28703701,0.0002136,5]
[350928866,1738210240852,-15406.18725042,0.0002136,5]
[350928869,1738210240864,-2231.67655375,0.0002136,5]
[350928871,1738210240876,-830.85128409,0.0002136,5]
[350928873,1738210240888,-881.21932506,0.0002136,5]
[350929099,1738210244133,-609.81812132,0.0002136,5]
[350929100,1738210244147,-3830.88656181,0.0002136,5]
[350929101,1738210244158,-331.98871748,0.00021383,2]
[350929102,1738210244171,-402.68639232,0.00021383,2]
[350929103,1738210244181,-1178.24295768,0.00021399,2]
[350929104,1738210244239,-185.87584232,0.00021399,2]
[350929105,1738210244250,-110.25859103,0.00021399,2]
[350929106,1738210244292,-1681.68130897,0.00021399,2]
[350929107,1738210244303,-1000.0,0.00021399,2]
[350929108,1738210244315,-2500.0,0.00021399,2]
[350929109,1738210244326,-378.708,0.000214,2]
[350929110,1738210244337,-307.3782,0.000214,2]
[350929111,1738210244346,-5000.0,0.000214,2]
[350929112,1738210244358,-3000.0,0.000214,2]
[350929113,1738210244369,-220.0,0.000214,2]
[350929114,1738210244379,-340.56,0.000214,31]
[350929115,1738210244390,-340.56,0.000214,31]
[350929116,1738210244400,-340.56,0.000214,31]
[350929118,1738210244410,-340.56,0.000214,31]
[350929120,1738210244420,-340.56,0.000214,31]
[350929121,1738210244430,-340.56,0.000214,31]
[350929122,1738210244439,-340.56,0.000214,31]
[350929123,1738210244449,-340.56,0.000214,31]
[350929124,1738210244459,-340.56,0.000214,31]
[350929125,1738210244469,-340.56,0.000214,31]
[350929126,1738210244479,-340.56,0.000214,31]
[350929127,1738210244489,-340.56,0.000214,31]
[350929128,1738210244499,-340.56,0.000214,31]
[350929129,1738210244509,-340.56,0.000214,31]
[350929130,1738210244520,-340.56,0.000214,31]
[350929131,1738210244531,-340.56,0.000214,31]
[350929132,1738210244542,-1722.40579168,0.000214,2]
[350929133,1738210244552,-286.11638396,0.000214,2]
[350929134,1738210244562,-1126.78541755,0.000214,2]
[350929135,1738210244572,-734.6751098,0.00021417,2]
[350929136,1738210244583,-788.0,0.00021432,2]
[350929137,1738210244594,-734.6751098,0.00021452,2]
[350929138,1738210244604,-1500.0,0.0002146,3]
[350929139,1738210244613,-286.11638396,0.0002146,2]
[350929140,1738210244623,-1000.0,0.0002147,2]
[350929141,1738210244634,-1000.0,0.0002147,2]
[350929142,1738210244651,-1000.0,0.0002147,2]
[350929143,1738210244661,-1000.0,0.0002147,2]
[350929144,1738210244671,-1000.0,0.0002147,2]
[350929145,1738210244685,-649.63527283,0.00021473,2]
[350929146,1738210244694,-150.0,0.00021479,4]
[350929147,1738210244705,-150.0,0.00021479,4]
[350929148,1738210244715,-150.0,0.00021479,4]
[350929150,1738210244726,-734.6751098,0.00021486,2]
[350929152,1738210244736,-151.69371315,0.0002149,2]
[350929154,1738210244746,-150.0,0.00021491,4]
[350929156,1738210244756,-500.0,0.00021498,4]
[350929158,1738210244767,-1438.9,0.00021498,4]
[350929160,1738210244776,-500.0,0.00021498,4]
[350929162,1738210244786,-500.41562041,0.00021498,4]
[350929165,1738210244797,-500.0,0.00021498,2]
[350929167,1738210244807,-500.0,0.00021498,4]
[350929169,1738210244816,-500.0,0.00021498,4]
[350929171,1738210244826,-479.16384472,0.00021498,4]
[350929173,1738210244835,-500.0,0.00021498,4]
[350929175,1738210244845,-500.0,0.00021498,4]
[350929177,1738210244854,-500.0,0.00021499,4]
[350929179,1738210244863,-500.0,0.00021499,4]
[350929181,1738210244872,-500.0,0.00021499,4]
[350929183,1738210244882,-444.61525328,0.00021499,4]
[350929185,1738210244891,-500.0,0.00021499,4]
[350929187,1738210244901,-500.0,0.00021499,4]
[350929189,1738210244911,-500.0,0.00021499,4]
[350929191,1738210244920,-500.0,0.00021499,4]
[350929193,1738210244930,-500.0,0.00021499,4]
[350929195,1738210244940,-500.0,0.00021499,4]
[350929197,1738210244950,-500.0,0.00021499,4]
[350929199,1738210244959,-359.49323366,0.00021499,4]
[350929201,1738210244969,-500.0,0.00021499,2]
[350929203,1738210244978,-200.0,0.00021499,4]
[350929206,1738210244992,-200.0,0.00021499,4]
[350929208,1738210245002,-200.0,0.00021499,4]
[350929210,1738210245011,-200.0,0.00021499,4]
[350929212,1738210245022,-200.0,0.00021499,4]
[350929214,1738210245031,-200.0,0.00021499,4]
[350929216,1738210245042,-200.0,0.00021499,4]
[350929218,1738210245052,-200.0,0.00021499,4]
[350929220,1738210245061,-200.0,0.00021499,4]
[350929222,1738210245071,-200.0,0.00021499,4]
[350929224,1738210245081,-200.0,0.00021499,4]
[350929226,1738210245090,-200.0,0.00021499,4]
[350929228,1738210245100,-215.22355874,0.00021499,4]
[350929230,1738210245109,-500.0,0.00021499,4]
[350929232,1738210245121,-500.0,0.00021499,4]
[350929234,1738210245130,-500.0,0.00021499,4]
[350929236,1738210245140,-602.00369086,0.00021499,4]
[350929239,1738210245150,-500.0,0.00021499,4]
[350929241,1738210245160,-550.09776135,0.00021499,4]
[350929243,1738210245170,-500.0,0.00021499,4]
[350929245,1738210245180,-500.0,0.00021499,4]
[350929247,1738210245190,-500.0,0.00021499,4]
[350929249,1738210245199,-500.0,0.00021499,4]
[350929251,1738210245209,-500.0,0.00021499,4]
[350929253,1738210245218,-500.0,0.00021499,4]
[350929255,1738210245227,-500.0,0.00021499,4]
[350929257,1738210245236,-500.0,0.00021499,4]
[350929259,1738210245245,-500.0,0.00021499,4]
[350929261,1738210245255,-500.0,0.00021499,4]
[350929263,1738210245265,-500.0,0.00021499,4]
[350929265,1738210245274,-500.0,0.00021499,4]
[350929267,1738210245283,-500.0,0.00021499,4]
[350929269,1738210245293,-500.0,0.00021499,4]
[350929271,1738210245302,-500.0,0.00021499,4]
[350929273,1738210245312,-500.0,0.00021499,4]
[350929275,1738210245322,-500.0,0.00021499,4]
[350929277,1738210245331,-311.39915209,0.00021499,4]
[350929279,1738210245341,-500.0,0.00021499,4]
[350929281,1738210245351,-500.0,0.00021499,4]
[350929283,1738210245360,-500.0,0.00021499,4]
[350929285,1738210245370,-500.0,0.00021499,4]
[350929287,1738210245379,-500.0,0.00021499,4]
[350929289,1738210245389,-500.0,0.00021499,4]
[350929291,1738210245398,-500.0,0.00021499,4]
[350929293,1738210245408,-500.0,0.00021499,4]
[350929295,1738210245418,-500.0,0.00021499,4]
[350929298,1738210245428,-500.0,0.00021499,4]
[350929300,1738210245437,-500.0,0.00021499,4]
[350929302,1738210245447,-500.0,0.00021499,4]
[350929304,1738210245456,-500.0,0.00021499,4]
[350929306,1738210245466,-500.0,0.00021499,4]
[350929308,1738210245475,-500.0,0.00021499,4]
[350929310,1738210245485,-500.0,0.00021499,4]
[350929312,1738210245494,-500.0,0.00021499,4]
[350929314,1738210245504,-500.0,0.00021499,4]
[350929316,1738210245514,-500.0,0.00021499,4]
[350929318,1738210245524,-500.0,0.00021499,4]
[350929320,1738210245534,-500.0,0.00021499,4]
[350929322,1738210245546,-500.0,0.00021499,4]
[350929324,1738210245555,-222.34392775,0.00021499,4]
[350929326,1738210245565,-500.0,0.00021499,4]
[350929328,1738210245575,-500.0,0.00021499,4]
[350929330,1738210245584,-500.0,0.00021499,4]
[350929332,1738210245594,-500.0,0.00021499,4]
[350929334,1738210245603,-293.80845441,0.00021499,4]
[350929336,1738210245613,-500.0,0.00021499,4]
[350929339,1738210245623,-500.0,0.00021499,4]
[350929341,1738210245632,-500.0,0.00021499,4]
[350929343,1738210245642,-399.90262721,0.00021499,4]
[350929345,1738210245652,-500.0,0.00021499,4]
[350929347,1738210245661,-500.0,0.00021499,4]
[350929349,1738210245671,-500.0,0.00021499,4]
[350929351,1738210245683,-500.0,0.00021499,4]
[350929353,1738210245693,-500.0,0.00021499,4]
[350929355,1738210245702,-500.0,0.00021499,4]
[350929357,1738210245711,-500.0,0.00021499,4]
[350929359,1738210245722,-500.0,0.00021499,4]
[350929361,1738210245731,-500.0,0.00021499,4]
[350929363,1738210245740,-500.0,0.00021499,4]
[350929365,1738210245750,-500.0,0.00021499,4]
[350929367,1738210245760,-500.0,0.00021499,4]
[350929369,1738210245770,-500.0,0.00021499,4]
[350929371,1738210245779,-500.0,0.00021499,4]
[350929373,1738210245789,-644.11635382,0.00021499,4]
[350929375,1738210245798,-193.81428656,0.00021499,4]
[350929377,1738210245807,-1438.9,0.00021499,4]
[350929379,1738210245817,-1438.9,0.00021499,4]
[350929381,1738210245827,-1438.9,0.00021499,4]
[350929405,1738210246036,-1438.9,0.00021499,4]
[350929407,1738210246047,-1438.9,0.00021499,4]
[350929409,1738210246057,-1438.9,0.00021499,4]
[350929411,1738210246067,-1438.9,0.00021499,4]
[350929413,1738210246076,-1438.9,0.00021499,4]
[350929415,1738210246086,-1438.9,0.00021499,4]
[350929417,1738210246097,-1438.9,0.00021499,4]
[350929419,1738210246107,-1438.9,0.00021499,4]
[350929420,1738210246118,-1438.9,0.00021499,4]
[350929422,1738210246129,-1438.9,0.00021499,4]
[350929425,1738210246141,-1438.9,0.00021499,4]
[350929427,1738210246151,-1438.9,0.00021499,4]
[350929429,1738210246162,-1438.9,0.00021499,4]
[350929430,1738210246174,-1438.9,0.00021499,4]
[350929433,1738210246184,-1438.9,0.00021499,4]
[350929435,1738210246195,-1438.9,0.00021499,4]
[350929437,1738210246205,-1438.9,0.00021499,4]
[350929439,1738210246215,-1438.9,0.00021499,4]
[350929441,1738210246225,-1438.9,0.00021499,4]
[350929443,1738210246234,-1439.0284002,0.00021499,4]
[350929445,1738210246244,-464.99130107,0.00021499,4]
[350929447,1738210246253,-500.0,0.00021499,4]
[350929449,1738210246263,-500.0,0.00021499,4]
[350929451,1738210246272,-500.0,0.00021499,4]
[350929453,1738210246282,-602.2986052,0.00021499,4]
[350929456,1738210246292,-999.0,0.00021499,2]
[350929458,1738210246301,-500.0,0.00021499,2]
[350929460,1738210246310,-500.0,0.00021499,2]
[350929462,1738210246319,-500.0,0.00021499,2]
[350929464,1738210246329,-500.0,0.00021499,2]
[350929466,1738210246339,-500.0,0.00021499,2]
[350929468,1738210246348,-500.0,0.00021499,2]
[350929470,1738210246358,-327.20044731,0.00021499,2]
[350929472,1738210246368,-500.0,0.00021499,4]
[350929474,1738210246378,-259.43128264,0.00021499,4]
[350929476,1738210246388,-500.0,0.00021499,4]
[350929478,1738210246398,-500.0,0.00021499,4]
[350929480,1738210246407,-500.0,0.00021499,4]
[350929482,1738210246416,-500.0,0.00021499,4]
[350929484,1738210246431,-500.0,0.00021499,4]
[350929486,1738210246440,-500.0,0.00021499,4]
[350929488,1738210246451,-500.0,0.00021499,4]
[350929489,1738210246460,-500.0,0.00021499,4]
[350929490,1738210246472,-500.0,0.00021499,4]
[350929491,1738210246482,-500.0,0.00021499,4]
[350929492,1738210246491,-500.0,0.00021499,4]
[350929493,1738210246500,-500.0,0.00021499,4]
[350929494,1738210246510,-500.0,0.00021499,4]
[350929495,1738210246519,-500.0,0.00021499,4]
[350929496,1738210246528,-500.0,0.00021499,4]
[350929497,1738210246538,-500.6037591,0.00021499,4]
[350929498,1738210246547,-517.26228069,0.00021499,4]
[350929500,1738210246557,-549.31886514,0.00021499,4]
[350929502,1738210246566,-517.09993775,0.00021499,4]
[350929504,1738210246575,-350.90676234,0.00021499,4]
[350929506,1738210246584,-264.04670496,0.00021499,4]
[350929508,1738210246594,-553.46552965,0.00021499,4]
[350929510,1738210246603,-248.19765467,0.00021499,2]
[350929512,1738210246612,-520.0,0.000215,2]
[350929514,1738210246622,-420140.82928246,0.000215,2]
[350929516,1738210246632,-888255.3450933,0.000215,2]
[350929518,1738210246642,-128786.77921366,0.000215,2]
[350929531,1738210246768,-948776.51983514,0.000215,2]
[350929533,1738210246780,-31575.0,0.000215,2]
[350929535,1738210246792,-932.46546835,0.000215,2]
[350929537,1738210246804,-474.62691923,0.000215,2]
[350929541,1738210246827,-6720.29087493,0.000215,2]
[350929543,1738210246839,-1025.88,0.000215,2]
[350929545,1738210246851,-7084.5000004,0.000215,2]
[350929718,1738210290769,150.0,0.00022362,120]
[350929720,1738210350818,150.0,0.00022216,120]
[350929722,1738210391818,500.0,0.00023,120]
[350929723,1738210395099,2000.0,0.00023,120]
[350929724,1738210397685,500.0,0.00023,120]
[350929725,1738210404902,200.0,0.00023,120]
[350929726,1738210410742,150.0,0.0002059,120]
[350929729,1738210471843,150.0,0.00021327,120]
[350929730,1738210530909,150.0,0.00020825,120]
[350929731,1738210570225,245.09,0.00010137,2]
[350929733,1738210590823,150.0,0.00021904,120]
[350929735,1738210651301,150.0,0.00020647,120]
[350929736,1738210711270,150.0,0.00021302,120]
[350929738,1738210770819,150.0,0.00022124,120]
[350929739,1738210830745,150.0,0.00021992,120]
[350929741,1738210891265,150.0,0.00022645,120]
[350929742,1738210950784,150.0,0.00021457,120]
[350929743,1738210990637,500.0,0.00023,120]
[350929744,1738210993535,1909.799383,0.00023,120]
[350929745,1738210995829,274.909092,0.00023,120]
[350929746,1738211003368,200.0,0.00023,120]
[350929747,1738211010754,150.0,0.00020801,120]
[350929748,1738211071430,150.0,0.00022459,120]
[350929749,1738211108028,23762.76259155,0.00012,2]
[350929750,1738211108068,43683.80526129,0.00012,2]
[350929751,1738211126832,998.99619476,0.00023,120]
[350929752,1738211130749,150.0,0.00021995,120]
[350929755,1738211144312,284.94257253,0.00022,120]
[350929756,1738211190854,150.0,0.00022399,120]
[350929757,1738211201710,2207.6599,0.00015,10]
[350929758,1738211230774,1007.20212155,0.00022,120]
[350929759,1738211251064,150.0,0.00021039,120]
[350929760,1738211266630,3564.24059388,0.0002,120]
[350929761,1738211269315,333.53874194,0.0002,120]
[350929763,1738211310732,150.0,0.00022027,120]
[350929766,1738211322077,202.0,0.0002,120]
[350929769,1738211324629,800.0,0.00021,120]
[350929771,1738211325141,411.6820384,0.00022,120]
[350929772,1738211325169,420.61819135,0.00022,120]
[350929773,1738211325265,195.78,0.0002,120]
[350929780,1738211370837,150.0,0.00022147,120]
[350929784,1738211383819,10000.0,0.00023,120]
[350929789,1738211405437,378.66,0.00023,120]
[350929790,1738211421543,698.762962,0.00023,120]
[350929794,1738211431289,150.0,0.00021856,120]
[350929798,1738211431503,-209.05,0.00013699,2]
[350929800,1738211431514,-300.0,0.00015999,2]
[350929802,1738211431524,-1074.20920682,0.00016,2]
[350929804,1738211431536,-652.28693926,0.00016,2]
[350929806,1738211431660,-3520.15114644,0.00016,2]
[350929807,1738211431671,-187.49202271,0.00017657,2]
[350929808,1738211431681,-169.71535883,0.00017748,2]
[350929809,1738211431690,-238.28464117,0.00017748,2]
[350929810,1738211431700,-603.35,0.00017757,2]
[350929811,1738211431709,-10000.0,0.00018,2]
[350929812,1738211431721,-1287.91,0.00018773,2]
[350929813,1738211431731,-4410.23,0.00018848,2]
[350929814,1738211431741,-453.61,0.0001895,2]
[350929815,1738211431750,-1280.0,0.00019065,2]
[350929816,1738211431761,-250.0,0.00019195,2]
[350929817,1738211431771,-150.0,0.00019316,2]
[350929818,1738211431782,-150.0,0.00019316,2]
[350929819,1738211431791,-154.64,0.00019586,2]
[350929820,1738211431806,-2041.86,0.00019615,2]
[350929821,1738211431818,-172.41,0.00019673,2]
[350929822,1738211431828,-1000.0,0.00019685,2]
[350929823,1738211431837,-226.98,0.00019691,2]
[350929824,1738211431847,-774.18,0.00019699,2]
[350929825,1738211431858,-773.3,0.00019699,2]
[350929826,1738211431867,-240.68350304,0.000197,2]
[350929827,1738211431878,-2751.0,0.00019715,2]
[350929828,1738211431888,-1280.0,0.00019771,2]
[350929829,1738211431898,-641.0,0.00019799,2]
[350929830,1738211431911,-55953.1746912,0.000198,2]
[350929846,1738211432216,-12084.8866255,0.000198,2]
[350929848,1738211432231,-259386.41177811,0.000198,2]
[350929849,1738211432240,-182.67610643,0.000198,2]
[350929850,1738211432250,-1753.71948325,0.00019876,2]
[350929851,1738211432260,-53166.14729405,0.00019895,2]
[350929852,1738211432269,-150.0,0.000199,2]
[350929853,1738211432280,-500.0,0.00019995,7]
[350929854,1738211432290,-408.13,0.0002,2]
[350929855,1738211432300,-150.0,0.0002,2]
[350929856,1738211432309,-1792.81660891,0.0002,4]
[350929857,1738211432320,-200.0,0.00020017,2]
[350929858,1738211432329,-603.35,0.00020021,2]
[350929859,1738211432339,-774.18,0.00020041,2]
[350929860,1738211432348,-53166.14729402,0.00020062,2]
[350929861,1738211432358,-2198.26,0.000201,2]
[350929862,1738211432368,-53166.14729402,0.00020229,2]
[350929863,1738211432378,-500.0,0.00020269,7]
[350929864,1738211432388,-305.99139039,0.00020386,2]
[350929865,1738211432398,-53166.14729402,0.00020397,2]
[350929866,1738211432408,-5000.0,0.0002044,2]
[350929867,1738211432418,-1004.554,0.00020475,2]
[350929868,1738211432427,-152.02,0.00020476,2]
[350929869,1738211432437,-639.285,0.00020476,2]
[350929870,1738211432446,-570.748,0.00020476,2]
[350929871,1738211432456,-1872.13,0.00020476,2]
[350929872,1738211432469,-921.741,0.00020476,2]
[350929873,1738211432479,-2981.763,0.00020476,2]
[350929874,1738211432496,-1265.439,0.00020476,2]
[350929875,1738211432511,-783.0,0.00020476,2]
[350929876,1738211432521,-153.135,0.00020476,2]
[350929877,1738211432531,-540.193,0.00020476,2]
[350929878,1738211432541,-3906.0,0.00020476,2]
[350929879,1738211432551,-155.924,0.00020476,2]
[350929880,1738211432560,-1005.0,0.00020476,2]
[350929881,1738211432569,-2027.39,0.00020476,2]
[350929882,1738211432579,-1280.0,0.00020476,2]
[350929883,1738211432589,-864.58,0.00020478,2]
[350929884,1738211432599,-150.0,0.00020494,2]
[350929885,1738211432609,-150.0,0.00020494,2]
[350929886,1738211432618,-150.0,0.00020496,2]
[350929887,1738211432628,-178.72501733,0.000205,2]
[350929888,1738211432639,-500.0,0.000205,2]
[350929889,1738211432648,-150.0,0.00020535,2]
[350929890,1738211432658,-150.0,0.00020539,2]
[350929891,1738211432668,-774.18,0.00020541,2]
[350929892,1738211432678,-500.0,0.00020543,7]
[350929893,1738211432687,-150.0,0.0002055,2]
[350929894,1738211432697,-150.0,0.00020563,2]
[350929895,1738211432707,-53166.14729402,0.00020564,2]
[350929896,1738211432719,-150.0,0.00020569,2]
[350929897,1738211432729,-150.0,0.00020588,2]
[350929898,1738211432739,-150.0,0.0002059,2]
[350929899,1738211432748,-150.0,0.0002059,2]
[350929900,1738211432758,-150.0,0.00020601,2]
[350929901,1738211432767,-150.0,0.00020615,2]
[350929902,1738211432777,-150.0,0.00020619,2]
[350929903,1738211432786,-1607.57873892,0.00020625,2]
[350929904,1738211432796,-150.0,0.00020626,2]
[350929905,1738211432806,-150.0,0.00020636,2]
[350929906,1738211432817,-150.0,0.00020656,2]
[350929907,1738211432826,-150.0,0.00020663,2]
[350929908,1738211432836,-5000.0,0.00020666,2]
[350929909,1738211432845,-150.0,0.00020673,2]
[350929910,1738211432855,-150.0,0.00020674,2]
[350929911,1738211432865,-150.0,0.00020682,2]
[350929912,1738211432874,-150.0,0.0002069,2]
[350929913,1738211432884,-12351.20380411,0.000207,2]
[350929914,1738211432894,-300.0,0.00020719,2]
[350929915,1738211432904,-150.0,0.00020727,2]
[350929916,1738211432914,-150.0,0.00020728,2]
[350929917,1738211432923,-53166.14729402,0.00020731,2]
[350929918,1738211432934,-150.0,0.00020742,2]
[350929919,1738211432943,-150.0,0.00020746,2]
[350929920,1738211432954,-150.0,0.00020775,2]
[350929921,1738211432964,-596.1,0.00020795,2]